bitfinex/quotes_BTCUSD_20251104
["timestamp","ask_amount","ask_price","bid_price","bid_amount"]
[1762247990638,0.05739588,104000.0,103990.0,0.20302267]
[1762247990830,0.08628588,104000.0,103990.0,0.20302267]
[1762247991347,0.27859357,104000.0,103990.0,0.01069649]
[1762247991715,0.27859357,104000.0,103990.0,0.20302267]
[1762247991914,0.27859357,104000.0,103990.0,0.01069649]
[1762247992358,0.08628588,104000.0,103990.0,0.20302267]
[1762247992580,0.08628588,104000.0,103990.0,0.24422267]
[1762247993262,0.27859357,104000.0,103990.0,0.24422267]
[1762247993488,0.27859357,104000.0,103990.0,0.05189649]
[1762247994137,0.37407264,104000.0,103990.0,0.05189649]
[1762247994678,0.37407264,104000.0,103990.0,0.24422267]
[1762247994884,0.37407264,104000.0,103990.0,0.05189649]
[1762247995472,0.37407264,104000.0,103990.0,0.24422267]
[1762247995826,0.37407264,104000.0,103990.0,0.05189649]
[1762247996062,0.27859357,104000.0,103990.0,0.24422267]
[1762247996664,0.08628588,104000.0,103990.0,0.24422267]
[1762247997882,0.05739588,104000.0,103990.0,0.25985267]
[1762247998088,0.05739588,104000.0,103990.0,0.27976267]
[1762247998089,0.00954,104000.0,103990.0,0.27976267]
[1762247998300,0.24970769,104000.0,103990.0,0.24422267]
[1762247998521,0.0574,104000.0,103990.0,0.24422267]
[1762247999246,0.02851,104000.0,103990.0,0.24422267]
[1762247999470,0.002,104000.0,103990.0,0.31091267]
[1762248000518,0.002,104000.0,103990.0,0.25985267]
[1762248000673,0.24216769,104000.0,103990.0,0.05189649]
[1762248001661,0.24216769,104000.0,103990.0,0.24422267]
[1762248002445,0.24216769,104000.0,103990.0,0.05189649]
[1762248002764,0.04986,104000.0,103990.0,0.24422267]
[1762248002965,0.002,104000.0,103990.0,0.27976267]
[1762248003170,0.002,104000.0,103990.0,0.31091267]
[1762248003364,0.002,104000.0,103990.0,0.33008835]
[1762248003610,0.002,104000.0,103990.0,0.31091267]
[1762248003832,0.002,104000.0,103990.0,0.65091267]
[1762248004411,0.001,104000.0,103990.0,0.65091267]
[1762248004822,0.2008092,104010.0,104000.0,0.19230769]
[1762248005038,0.00852,104010.0,104000.0,0.19303005]
[1762248005243,0.05638,104010.0,104000.0,0.19303005]
[1762248005452,0.2486692,104010.0,104000.0,0.19303005]
[1762248005750,0.05638,104010.0,104000.0,0.19303005]
[1762248006566,0.01491,104020.0,104010.0,0.1922892]
[1762248006788,0.05269907,104020.0,104010.0,0.23663648]
[1762248007004,0.03388,104020.0,104010.0,0.21672648]
[1762248007502,0.06277,104020.0,104010.0,0.21672648]
[1762248007721,0.03388,104020.0,104010.0,0.21672648]
[1762248008357,0.03388,104020.0,104010.0,0.21772648]
[1762248009423,0.07267996,104030.0,104020.0,0.19227071]
[1762248009833,0.09164996,104030.0,104020.0,0.19227071]
[1762248010001,0.06275996,104030.0,104020.0,0.19227071]
[1762248010209,0.09164996,104030.0,104020.0,0.19227071]
[1762248010403,0.28390219,104030.0,104020.0,0.19227071]
[1762248010744,0.28490219,104030.0,104010.0,0.21672648]
[1762248010946,0.26693219,104030.0,104010.0,0.21672648]
[1762248011141,0.26693219,104030.0,104020.0,0.19227071]
[1762248011544,0.28490219,104030.0,104020.0,0.19227071]
[1762248011760,0.28490219,104030.0,104010.0,0.21672648]
[1762248011999,0.28590219,104030.0,104010.0,0.21672648]
[1762248012152,0.21124071,104020.0,104010.0,0.21672648]
[1762248012354,0.01897,104020.0,104010.0,0.21672648]
[1762248012569,0.26593219,104030.0,104020.0,0.19227071]
[1762248012930,0.26493219,104030.0,104020.0,0.19227071]
[1762248013311,0.28390219,104030.0,104020.0,0.19227071]
[1762248013675,0.28490219,104030.0,104010.0,0.21672648]
[1762248013878,0.28590219,104030.0,104020.0,0.19227071]
[1762248014438,0.09264996,104030.0,104020.0,0.19227071]
[1762248014849,0.09264996,104030.0,104020.0,0.27927043]
[1762248014850,0.002,104030.0,104020.0,0.27927043]
[1762248015174,0.002,104030.0,104020.0,0.23837071]
[1762248015380,0.001,104030.0,104020.0,0.23837071]
[1762248015770,0.002,104030.0,104020.0,0.23837071]
[1762248015973,0.002,104030.0,104020.0,0.61455299]
[1762248016172,0.19216049,104080.0,104060.0,0.00960984]
[1762248016378,0.02668443,104080.0,104070.0,0.20675834]
[1762248016947,0.2373843,104080.0,104070.0,0.20675834]
[1762248017142,0.27560458,104080.0,104060.0,0.28014081]
[1762248017348,0.27609076,104080.0,104070.0,0.19217834]
[1762248017854,0.27609076,104080.0,104060.0,0.28014081]
[1762248018053,0.27609076,104080.0,104070.0,0.001]
[1762248018630,0.24767076,104080.0,104070.0,0.19317834]
[1762248018826,0.24767076,104080.0,104070.0,0.19217834]
[1762248019030,0.27609076,104080.0,104060.0,0.30811081]
[1762248019223,0.27609076,104080.0,104060.0,0.2539283]
[1762248019417,0.27609076,104080.0,104070.0,0.19217834]
[1762248019861,0.19217834,104070.0,104060.0,0.2539283]
[1762248020069,0.20660834,104070.0,104060.0,0.02416728]
[1762248020285,0.25356834,104070.0,104060.0,0.00958728]
[1762248020438,0.06139,104070.0,104060.0,0.20378408]
[1762248020632,0.25356834,104070.0,104060.0,0.20378408]
[1762248020854,0.25356834,104070.0,104060.0,0.20178408]
[1762248021243,0.25356834,104070.0,104060.0,0.01358728]
[1762248021696,0.25356834,104070.0,104060.0,0.20578408]
[1762248022152,0.25356834,104070.0,104060.0,0.01358728]
[1762248022659,0.25356834,104070.0,104060.0,0.01458728]
[1762248023786,0.82187345,104070.0,104060.0,0.00958728]
[1762248024372,0.25756834,104070.0,104060.0,0.00958728]
[1762248024600,0.59756834,104070.0,104060.0,0.00958728]
[1762248024805,0.59556834,104070.0,104060.0,0.00958728]
[1762248025155,0.59556834,104070.0,104060.0,0.20178408]
[1762248025374,0.59556834,104070.0,104060.0,0.00958728]
[1762248025583,0.62443688,104070.0,104060.0,0.00958728]
[1762248025800,0.62243688,104070.0,104060.0,0.20178408]
[1762248026022,0.02886854,104070.0,104060.0,0.26077195]
[1762248026317,0.00048618,104080.0,104070.0,0.19217834]
[1762248026523,0.00048618,104080.0,104070.0,0.23827834]
[1762248026735,0.53212341,104100.0,104090.0,0.1921413]
[1762248026958,0.53226922,104100.0,104080.0,0.24784715]
[1762248027180,0.19214141,104090.0,104080.0,0.26484059]
[1762248027419,0.20933141,104090.0,104080.0,0.00958728]
[1762248028258,0.20933141,104090.0,104080.0,0.20174715]
[1762248028679,0.01719,104090.0,104080.0,0.20174715]
[1762248029099,0.53226922,104100.0,104080.0,0.20174715]
[1762248029305,0.53226922,104100.0,104090.0,0.19214141]
[1762248029524,0.53226922,104100.0,104080.0,0.22993671]
[1762248029525,0.54179948,104100.0,104080.0,0.22993671]
[1762248029955,0.19214141,104090.0,104080.0,0.20174671]
[1762248030178,0.53214141,104090.0,104080.0,0.20174671]
[1762248030386,0.00014581,104100.0,104090.0,0.19214141]
[1762248030642,0.00214581,104100.0,104090.0,0.23976141]
[1762248030851,0.80612597,104100.0,104080.0,0.21563671]
[1762248031050,0.23782086,104100.0,104080.0,0.21563671]
[1762248031255,0.34,104090.0,104080.0,0.21563671]
[1762248031459,0.34,104090.0,104080.0,0.24382671]
[1762248031669,0.34,104090.0,104080.0,0.23506671]
[1762248031842,0.34,104090.0,104080.0,0.26325671]
[1762248032648,0.341,104090.0,104080.0,0.23506671]
[1762248033069,0.341,104090.0,104080.0,0.26325671]
[1762248033495,0.34,104090.0,104080.0,0.26325671]
[1762248033937,0.34,104090.0,104080.0,0.23506671]
[1762248034362,0.34,104090.0,104080.0,0.04490728]
[1762248034584,0.34,104090.0,104080.0,0.002]
[1762248034585,1.13642652,104090.0,104080.0,0.002]
[1762248034817,1.16529081,104090.0,104080.0,0.002]
[1762248035036,0.5969857,104090.0,104080.0,0.002]
[1762248035689,0.19216302,104080.0,104070.0,0.19217695]
[1762248035893,0.22814302,104080.0,104060.0,0.20180529]
[1762248036122,0.00356,104070.0,104060.0,0.20180529]
[1762248036542,0.00356,104070.0,104060.0,0.22123529]
[1762248036756,0.00356,104070.0,104060.0,0.24942529]
[1762248037680,0.19572094,104080.0,104070.0,0.19217834]
[1762248037895,0.01799,104070.0,104060.0,0.20180529]
[1762248038102,0.21371094,104080.0,104060.0,0.20180529]
[1762248038322,0.21371094,104080.0,104070.0,0.19217834]
[1762248038535,0.02155,104080.0,104070.0,0.19217834]
[1762248038755,0.21370987,104080.0,104070.0,0.19217834]
[1762248039007,0.19571987,104080.0,104070.0,0.22549834]
[1762248039220,0.23169987,104080.0,104070.0,0.19217834]
[1762248039436,0.55370987,104080.0,104070.0,0.01389]
[1762248039659,0.23169987,104080.0,104060.0,0.21239257]
[1762248039897,0.60056416,104080.0,104070.0,0.19217834]
[1762248040352,0.60056416,104080.0,104060.0,0.21239257]
[1762248040789,0.21016834,104070.0,104060.0,0.21139257]
[1762248041009,0.22815834,104070.0,104060.0,0.00958728]
[1762248041243,0.22815834,104070.0,104060.0,0.20178408]
[1762248041483,0.22815834,104070.0,104060.0,0.00958728]
[1762248041688,0.25702643,104070.0,104060.0,0.00958728]
[1762248042089,0.59702643,104070.0,104060.0,0.00958728]
[1762248042300,0.19221306,104060.0,104040.0,0.21143208]
[1762248042508,0.21741528,104050.0,104040.0,0.00958728]
[1762248042718,0.21741528,104050.0,104040.0,0.20182103]
[1762248043570,0.21741528,104050.0,104040.0,0.20230721]
[1762248043781,0.23540528,104050.0,104040.0,0.01007346]
[1762248044001,0.23540528,104050.0,104040.0,0.01607346]
[1762248044420,0.23540528,104050.0,104040.0,0.20830721]
[1762248044631,0.23540528,104050.0,104040.0,0.01807346]
[1762248044854,0.57540528,104050.0,104040.0,0.01807346]
[1762248045077,1.23918946,104050.0,104040.0,0.01607346]
[1762248045372,1.26806461,104050.0,104040.0,0.00648618]
[1762248045819,1.26806461,104050.0,104040.0,0.00148618]
[1762248046035,1.26806461,104050.0,104040.0,0.00548618]
[1762248046492,1.30424689,104050.0,104040.0,0.00548618]
[1762248046720,1.30424689,104050.0,104040.0,0.00048618]
[1762248047164,1.30424689,104050.0,104040.0,0.00248618]
[1762248047617,1.20876782,104050.0,104040.0,0.00248618]
[1762248049471,0.53225223,104030.0,104020.0,0.00024072]
[1762248049696,0.55554811,104030.0,104020.0,0.00024072]
[1762248049922,0.57233811,104030.0,104020.0,0.00024072]
[1762248050375,0.57233811,104030.0,104020.0,0.19251143]
[1762248050839,0.57233811,104030.0,104020.0,0.00024072]
[1762248051063,0.57233811,104030.0,104020.0,0.00224072]
[1762248051314,0.60121735,104030.0,104020.0,0.00224072]
[1762248051536,0.60121735,104030.0,104020.0,0.19451143]
[1762248051902,0.60121735,104030.0,104020.0,0.19951143]
[1762248053673,0.40896512,104030.0,104020.0,0.19951143]
[1762248053879,0.60121735,104030.0,104020.0,0.19951143]
[1762248054084,0.60121735,104030.0,104020.0,0.20909871]
[1762248054909,0.40896512,104030.0,104020.0,0.20909871]
[1762248055136,0.39217512,104030.0,104020.0,0.22709871]
[1762248055335,0.58442735,104030.0,104020.0,0.20909871]
[1762248055538,0.58442735,104030.0,104020.0,0.016828]
[1762248055740,0.58442735,104030.0,104020.0,0.20909871]
[1762248056146,0.39217512,104030.0,104020.0,0.20909871]
[1762248056982,0.402055,104030.0,104020.0,0.20909871]
[1762248057952,0.03538512,104030.0,104020.0,0.27158035]
[1762248058169,0.02936512,104030.0,104020.0,0.30052035]
[1762248058655,0.00048588,104030.0,104020.0,0.30052035]
[1762248058847,0.18198145,104070.0,104050.0,0.19221528]
[1762248058996,0.19220172,104060.0,104050.0,0.19221528]
[1762248059183,0.56107376,104060.0,104050.0,0.19221528]
[1762248060334,0.56107376,104060.0,104040.0,0.20180709]
[1762248060599,0.28769435,104050.0,104040.0,0.00958728]
[1762248060777,0.19224259,104040.0,104020.0,0.21370516]
[1762248060913,0.19224259,104040.0,104020.0,0.21385113]
[1762248061121,0.19224259,104040.0,104020.0,0.20226385]
[1762248061315,0.19224259,104040.0,104020.0,0.23645499]
[1762248061316,0.22112713,104030.0,104020.0,0.23645499]
[1762248061517,0.0288749,104030.0,104020.0,0.19265684]
[1762248061817,0.22112713,104030.0,104020.0,0.01838669]
[1762248062015,0.0288749,104030.0,104020.0,0.1926574]
[1762248062485,0.22112713,104030.0,104020.0,0.1926574]
[1762248062743,0.22112713,104030.0,104020.0,0.1936574]
[1762248062946,0.0288749,104030.0,104020.0,0.2116574]
[1762248063152,0.0288749,104030.0,104020.0,0.2106574]
[1762248063354,0.0288749,104030.0,104020.0,0.25635636]
[1762248063565,0.0288749,104030.0,104020.0,0.25583834]
[1762248063763,0.0288749,104030.0,104020.0,0.21013938]
[1762248063931,0.0288749,104030.0,104020.0,0.21113938]
[1762248064786,0.0288749,104030.0,104020.0,0.24307938]
[1762248065264,0.0288749,104030.0,104020.0,0.19613938]
[1762248065476,0.22112713,104030.0,104020.0,0.19627071]
[1762248065676,0.22112713,104030.0,104020.0,0.004]
[1762248065877,0.0288749,104030.0,104020.0,0.19627071]
[1762248066078,0.56112713,104030.0,104020.0,0.004]
[1762248066257,0.56112713,104030.0,104020.0,0.01358728]
[1762248066466,0.56112713,104030.0,104020.0,0.20585799]
[1762248066467,0.3688749,104030.0,104020.0,0.20585799]
[1762248066666,0.3688749,104030.0,104020.0,0.266083]
[1762248066873,0.3688749,104030.0,104020.0,0.295023]
[1762248067090,0.0288749,104030.0,104020.0,0.295023]
[1762248068261,0.18198145,104070.0,104060.0,0.1921968]
[1762248068463,0.02664631,104070.0,104060.0,0.20178408]
[1762248068662,0.06530743,104070.0,104060.0,0.20178408]
[1762248068875,0.05642533,104070.0,104060.0,0.20178408]
[1762248069077,0.37866112,104070.0,104060.0,0.20178408]
[1762248069418,0.2576318,104070.0,104060.0,0.00958728]
[1762248069642,0.2586318,104070.0,104060.0,0.00958728]
[1762248069852,0.5986318,104070.0,104060.0,0.00958728]
[1762248070065,0.5986318,104070.0,104060.0,0.20178408]
[1762248070281,0.40745346,104070.0,104060.0,0.20178408]
[1762248070733,0.5996318,104070.0,104060.0,0.00958728]
[1762248070941,0.57297963,104070.0,104060.0,0.20178408]
[1762248071146,0.57297963,104070.0,104060.0,0.00958728]
[1762248071359,0.57297963,104070.0,104060.0,0.20178408]
[1762248072223,0.57297963,104070.0,104060.0,0.00958728]
[1762248073293,0.57297963,104070.0,104060.0,0.20178408]
[1762248073503,0.57297963,104070.0,104060.0,0.00958728]
[1762248075453,0.57297963,104070.0,104060.0,0.20178408]
[1762248075698,0.57297963,104070.0,104060.0,0.00958728]
[1762248076156,1.36664093,104070.0,104060.0,0.00958728]
[1762248076379,1.39330467,104070.0,104060.0,0.00958728]
[1762248076603,0.19221528,104050.0,104040.0,0.00958728]
[1762248076823,0.98587658,104050.0,104040.0,0.00958728]
[1762248077039,1.32587658,104050.0,104040.0,0.00958728]
[1762248077275,1.35475203,104050.0,104040.0,0.00958728]
[1762248077935,1.35475203,104050.0,104040.0,0.003]
[1762248078720,1.35475203,104050.0,104040.0,0.001]
[1762248079901,1.35475203,104050.0,104030.0,0.20183951]
[1762248080098,0.19223375,104040.0,104030.0,0.20183951]
[1762248080320,0.6565698,104050.0,104030.0,0.20183951]
[1762248080521,0.19223375,104040.0,104030.0,0.20183951]
[1762248080731,0.6605698,104050.0,104030.0,0.20183951]
[1762248080930,0.6625698,104050.0,104030.0,0.20183951]
[1762248081133,0.19223375,104040.0,104030.0,0.20183951]
[1762248081488,0.34,104040.0,104030.0,0.20183951]
[1762248081759,0.53223375,104040.0,104030.0,0.20183951]
[1762248081983,0.34,104040.0,104030.0,0.20183951]
[1762248083063,0.22309154,104050.0,104040.0,0.19223375]
[1762248083279,0.02887545,104050.0,104040.0,0.19223375]
[1762248083776,0.22109073,104050.0,104040.0,0.19223375]
[1762248084005,0.22109073,104050.0,104030.0,0.00958728]
[1762248084007,0.19223375,104040.0,104030.0,0.00958728]
[1762248084637,0.19223375,104040.0,104030.0,0.20183951]
[1762248084868,0.19223375,104040.0,104030.0,0.00958728]
[1762248085279,0.19223375,104040.0,104030.0,0.20183951]
[1762248086148,0.19223375,104040.0,104030.0,0.00958728]
[1762248087448,0.9192936,104040.0,104030.0,0.00958728]
[1762248087647,0.19227071,104020.0,104010.0,0.21148586]
[1762248088288,0.1922664,104030.0,104010.0,0.24317664]
[1762248088491,0.22114992,104020.0,104010.0,0.20211726]
[1762248088750,0.22114992,104020.0,104010.0,0.00982806]
[1762248088964,1.25933215,104020.0,104010.0,0.00072666]
[1762248089177,1.29551443,104020.0,104010.0,0.00072666]
[1762248089401,0.89047143,104010.0,104000.0,0.00958728]
[1762248090115,1.23047143,104010.0,104000.0,0.00982809]
[1762248090720,1.23247143,104010.0,104000.0,0.00982809]
[1762248091810,1.23347143,104010.0,104000.0,0.00982809]
[1762248092245,0.5352892,104010.0,104000.0,0.00982809]
[1762248092455,1.23347143,104010.0,104000.0,0.00982809]
[1762248094659,0.53230769,104000.0,103990.0,0.0412]
[1762248094885,0.19234468,103980.0,103970.0,0.00978728]
[1762248095170,0.19243807,103980.0,103970.0,0.0002]
[1762248095381,0.28791714,103980.0,103970.0,0.0002]
[1762248095606,0.3168105,103980.0,103970.0,0.0002]
[1762248095826,0.6568105,103980.0,103970.0,0.0002]
[1762248096776,0.66651561,103980.0,103970.0,0.0002]
[1762248097021,1.36469784,103980.0,103970.0,0.0002]
[1762248097270,1.3824064,103980.0,103970.0,0.0002]
[1762248097487,1.36469784,103980.0,103970.0,0.0002]
[1762248100028,0.67051561,103980.0,103970.0,0.0002]
[1762248100229,1.23054541,103970.0,103960.0,0.0002]
[1762248100571,1.26672769,103970.0,103960.0,0.00096369]
[1762248101408,1.26672769,103970.0,103960.0,3.69e-06]
[1762248102835,1.2931633,103970.0,103960.0,3.69e-06]
[1762248105067,1.2961633,103970.0,103960.0,3.69e-06]
[1762248106890,1.3011633,103970.0,103960.0,3.69e-06]
[1762248107500,1.27472769,103970.0,103960.0,3.69e-06]
[1762248107746,1.30110582,103970.0,103960.0,3.69e-06]
[1762248107965,0.56858247,103950.0,103930.0,0.0002]
[1762248108185,0.98608,103940.0,103930.0,0.0002]
[1762248108834,1.01498728,103940.0,103930.0,0.0002]
[1762248108968,1.01498728,103940.0,103930.0,0.00092311]
[1762248109370,1.06874251,103940.0,103930.0,0.0010692]
[1762248109758,0.19243721,103930.0,103920.0,0.0002]
[1762248109961,0.89061944,103930.0,103920.0,0.00034614]
[1762248110806,1.23061944,103930.0,103920.0,0.00034614]
[1762248111676,0.53243721,103930.0,103920.0,0.00034614]
[1762248111899,1.23061944,103930.0,103920.0,0.00034614]
[1762248112099,1.25018737,103930.0,103920.0,0.00034614]
[1762248112243,0.92682024,103920.0,103910.0,0.0002]
[1762248112441,1.02229931,103920.0,103910.0,0.0002]
[1762248112921,1.05121428,103920.0,103910.0,0.0002]
[1762248113533,0.2213707,103920.0,103910.0,0.0002]
[1762248113729,0.31684977,103920.0,103910.0,0.0002]
[1762248113941,0.31684977,103920.0,103910.0,0.0012]
[1762248113942,1.015032,103920.0,103910.0,0.0012]
[1762248114153,0.31684977,103920.0,103910.0,0.19367425]
[1762248114347,0.2213707,103920.0,103910.0,0.19367425]
[1762248114708,0.02891497,103920.0,103910.0,0.21193425]
[1762248114909,0.02891497,103920.0,103910.0,0.2515295]
[1762248115110,0.02891497,103920.0,103910.0,0.21193425]
[1762248115376,0.2975187,103940.0,103920.0,0.19245573]
[1762248115487,0.34400849,103940.0,103930.0,0.19243721]
[1762248115697,0.34400849,103940.0,103920.0,0.20204226]
[1762248115905,0.19243721,103930.0,103920.0,0.20204226]
[1762248116293,0.19243721,103930.0,103920.0,0.00958728]
[1762248116732,0.32842643,103940.0,103920.0,0.20204301]
[1762248116944,0.34601859,103940.0,103930.0,0.19243721]
[1762248117374,0.38649989,103940.0,103930.0,0.19243721]
[1762248117586,0.57891859,103940.0,103930.0,0.19243721]
[1762248117855,0.57891859,103940.0,103920.0,0.00958728]
[1762248118093,0.19243721,103930.0,103920.0,0.20204301]
[1762248118322,0.01759216,103930.0,103920.0,0.20204301]
[1762248118526,0.0176162,103930.0,103920.0,0.20204301]
[1762248118746,0.58094275,103940.0,103930.0,0.19243721]
[1762248119386,0.57994275,103940.0,103920.0,0.20204301]
[1762248119594,0.19243721,103930.0,103920.0,0.20204301]
[1762248119797,0.21005353,103930.0,103920.0,0.20204301]
[1762248120436,0.21952697,103930.0,103920.0,0.00958728]
[1762248120858,0.31500604,103930.0,103920.0,0.00958728]
[1762248121064,1.22417807,103930.0,103920.0,0.00958728]
[1762248121264,1.25088691,103930.0,103920.0,0.00024109]
[1762248121463,1.2597082,103930.0,103920.0,0.00024109]
[1762248121714,0.56863801,103920.0,103910.0,0.0002]
[1762248121920,1.16424706,103920.0,103910.0,0.0002]
[1762248123196,1.16371837,103920.0,103910.0,0.0002]
[1762248123638,0.59454634,103920.0,103910.0,0.0002]
[1762248123940,1.16371837,103920.0,103910.0,0.0002]
[1762248124563,1.16471837,103920.0,103910.0,0.0002]
[1762248124768,1.16571837,103920.0,103910.0,0.0002]
[1762248125189,1.18996393,103920.0,103910.0,0.0002]
[1762248125394,0.6207919,103920.0,103910.0,0.0002]
[1762248125597,1.18996393,103920.0,103910.0,0.0002]
[1762248125805,0.53247425,103910.0,103900.0,0.00978728]
[1762248126018,0.53247425,103910.0,103900.0,0.0002]
[1762248126019,1.22369716,103910.0,103900.0,0.0002]
[1762248126224,1.25987944,103910.0,103900.0,0.0002]
[1762248126630,1.25987944,103910.0,103880.0,0.0002]
[1762248126631,1.10168334,103890.0,103880.0,0.0002]
[1762248126834,1.12825327,103890.0,103880.0,0.00068687]
[1762248127040,1.12825327,103890.0,103860.0,0.0002]
[1762248127041,0.53254837,103870.0,103860.0,0.0002]
[1762248127249,0.53254837,103870.0,103850.0,0.0002]
[1762248127250,0.55907486,103870.0,103850.0,0.0002]
[1762248127468,0.62804598,103860.0,103850.0,0.0002]
[1762248127620,0.65461591,103860.0,103850.0,0.0002]
[1762248128029,0.65461591,103860.0,103850.0,0.19278545]
[1762248128030,0.36656993,103860.0,103850.0,0.19278545]
[1762248128230,0.35771454,103860.0,103850.0,0.19278545]
[1762248128566,0.01771454,103860.0,103850.0,0.19278545]
[1762248128854,0.00048525,103870.0,103860.0,0.19256691]
[1762248129003,0.02701348,103870.0,103860.0,0.19256691]
[1762248129221,0.01817074,103870.0,103860.0,0.19256691]
[1762248129422,0.01817074,103870.0,103860.0,0.21482691]
[1762248129827,0.00048525,103870.0,103860.0,0.24388691]
[1762248130937,0.00048525,103870.0,103860.0,0.23988691]
[1762248131114,0.00048525,103870.0,103860.0,0.21282691]
[1762248131320,0.00148525,103870.0,103860.0,0.24988691]
[1762248132042,0.00148525,103870.0,103860.0,0.25388691]
[1762248132463,0.00148525,103870.0,103860.0,0.26347419]
[1762248132725,0.00148525,103870.0,103860.0,0.31200963]
[1762248133450,0.00148525,103870.0,103860.0,0.65200963]
[1762248134889,0.00148525,103870.0,103860.0,0.68819191]
[1762248135293,0.00148525,103870.0,103860.0,0.64110395]
[1762248136778,1e-08,103870.0,103860.0,0.64110395]
[1762248136970,1e-08,103870.0,103860.0,0.65110394]
[1762248137129,1e-08,103870.0,103860.0,0.64110395]
[1762248140193,1e-08,103870.0,103860.0,0.65110394]
[1762248140389,1e-08,103870.0,103860.0,0.75567999]
[1762248141057,1e-08,103870.0,103860.0,0.77406155]
[1762248141267,1e-08,103870.0,103860.0,0.75567999]
[1762248141414,1e-08,103870.0,103860.0,0.64510394]
[1762248141832,0.00100001,103870.0,103860.0,0.65310394]
[1762248142034,1.06516381,103920.0,103890.0,0.19249922]
[1762248142234,0.19247595,103910.0,103890.0,0.21607517]
[1762248142441,0.02656031,103910.0,103900.0,0.19249278]
[1762248142652,0.00885323,103910.0,103900.0,0.19249278]
[1762248143324,0.50484501,103920.0,103900.0,0.19249278]
[1762248143492,0.52255283,103920.0,103900.0,0.19249278]
[1762248143693,0.19247516,103910.0,103890.0,0.25373073]
[1762248143892,0.20532839,103910.0,103890.0,0.25373073]
[1762248144287,0.20532839,103910.0,103890.0,0.22570073]
[1762248144511,0.01285323,103910.0,103900.0,0.19249278]
[1762248144710,0.20532748,103910.0,103890.0,0.25373073]
[1762248144933,0.20132748,103910.0,103890.0,0.25373073]
[1762248145131,0.20132748,103910.0,103890.0,0.25373724]
[1762248145333,0.20132748,103910.0,103900.0,0.19249278]
[1762248145334,0.00885323,103910.0,103900.0,0.19249278]
[1762248145735,0.51446779,103920.0,103900.0,0.19249278]
[1762248145934,0.19247425,103910.0,103890.0,0.22570724]
[1762248146147,0.19249278,103900.0,103890.0,0.00963595]
[1762248146367,0.20134601,103900.0,103890.0,0.20214726]
[1762248146624,0.00885323,103900.0,103890.0,0.21608726]
[1762248146824,0.19247425,103910.0,103890.0,0.21608726]
[1762248146825,0.20132839,103910.0,103900.0,0.19249278]
[1762248147110,0.02658476,103910.0,103900.0,0.19249278]
[1762248147314,0.21905901,103910.0,103900.0,0.19249278]
[1762248147525,0.02658728,103910.0,103900.0,0.19249278]
[1762248147725,0.21906153,103910.0,103890.0,0.24511726]
[1762248147927,0.21906153,103910.0,103900.0,0.00048231]
[1762248148085,0.21906153,103910.0,103900.0,0.19297509]
[1762248148280,0.21906153,103910.0,103900.0,0.19397509]
[1762248148501,0.21906153,103910.0,103900.0,0.00148231]
[1762248148700,0.21906153,103910.0,103900.0,0.19397509]
[1762248149066,0.21906153,103910.0,103900.0,0.00148231]
[1762248149255,0.21906153,103910.0,103900.0,0.19397509]
[1762248149465,0.21906153,103910.0,103900.0,0.19297509]
[1762248149686,0.21906153,103910.0,103900.0,0.00048231]
[1762248150108,1.14016659,103920.0,103900.0,0.00048231]
[1762248150323,1.14016659,103920.0,103900.0,0.19349278]
[1762248150532,1.14016659,103920.0,103910.0,0.00024113]
[1762248151682,1.14216659,103920.0,103910.0,0.00024113]
[1762248152331,1.14016659,103920.0,103910.0,0.00024113]
[1762248152548,1.14216659,103920.0,103910.0,0.00024113]
[1762248153635,0.57299456,103920.0,103910.0,0.00024113]
[1762248153845,1.14216659,103920.0,103910.0,0.00024113]
[1762248154479,1.17834887,103920.0,103910.0,0.00024113]
[1762248154709,1.17834887,103920.0,103890.0,0.00963595]
[1762248154710,0.53249278,103900.0,103890.0,0.00963595]
[1762248154916,1.19714388,103900.0,103890.0,4.867e-05]
[1762248155335,1.26224568,103900.0,103890.0,4.867e-05]
[1762248155902,1.26624568,103900.0,103890.0,4.867e-05]
[1762248156586,0.69707365,103900.0,103890.0,4.867e-05]
[1762248156876,1.17076661,103900.0,103890.0,4.867e-05]
[1762248157087,1.17176661,103900.0,103890.0,4.867e-05]
[1762248158891,1.13558433,103900.0,103890.0,4.867e-05]
[1762248159843,0.5664123,103900.0,103890.0,4.867e-05]
[1762248160012,1.13558433,103900.0,103890.0,4.867e-05]
[1762248160212,1.13558433,103900.0,103890.0,0.00053105]
[1762248161478,1.13558433,103900.0,103890.0,0.19304236]
[1762248161689,1.13558433,103900.0,103890.0,0.00053105]
[1762248162311,1.14447838,103900.0,103890.0,0.00053105]
[1762248163134,1.16226677,103900.0,103890.0,0.00053105]
[1762248163564,1.14447838,103900.0,103890.0,0.00053105]
[1762248164172,1.14447838,103900.0,103890.0,0.19304236]
[1762248164373,1.14447838,103900.0,103890.0,0.00053105]
[1762248165399,1.14447838,103900.0,103890.0,0.19304236]
[1762248166296,1.14447838,103900.0,103890.0,0.00053105]
[1762248167397,1.14447838,103900.0,103890.0,0.19304236]
[1762248167604,1.14447838,103900.0,103890.0,0.00053105]
[1762248169879,1.14447838,103900.0,103890.0,0.19304236]
[1762248170295,1.14447838,103900.0,103890.0,0.00053105]
[1762248172342,1.14447838,103900.0,103890.0,0.19304236]
[1762248172708,1.14447838,103900.0,103890.0,0.00053105]
[1762248173522,0.01389405,103900.0,103890.0,0.25329077]
[1762248173742,0.01389405,103900.0,103890.0,0.23403964]
[1762248174388,0.00889405,103900.0,103890.0,0.23403964]
[1762248174595,0.00889405,103900.0,103890.0,0.23503964]
[1762248175041,0.00889405,103900.0,103890.0,0.26091964]
[1762248175255,0.20138683,103900.0,103890.0,0.23503964]
[1762248175456,0.20138683,103900.0,103890.0,0.23603964]
[1762248175665,0.00889405,103900.0,103890.0,0.23603964]
[1762248176769,0.2303005,103900.0,103890.0,0.23603964]
[1762248177412,0.03780772,103900.0,103890.0,0.23603964]
[1762248177630,0.02891367,103900.0,103890.0,0.30736445]
[1762248177857,0.20216881,103930.0,103920.0,0.19245573]
[1762248178100,0.21105696,103930.0,103920.0,0.00958728]
[1762248178323,0.03779641,103930.0,103920.0,0.20204301]
[1762248178538,0.03779641,103930.0,103920.0,0.00958728]
[1762248178539,0.23023362,103930.0,103920.0,0.00958728]
[1762248178801,0.57023362,103930.0,103920.0,0.20204301]
[1762248179243,0.23023168,103930.0,103920.0,0.20204301]
[1762248179666,0.57023168,103930.0,103920.0,0.20204301]
[1762248179874,0.57623168,103930.0,103920.0,0.20204301]
[1762248180291,0.57623168,103930.0,103920.0,0.00958728]
[1762248180723,0.57023168,103930.0,103920.0,0.20204301]
[1762248180931,1.27186368,103930.0,103920.0,0.00958728]
[1762248181970,1.27186223,103930.0,103920.0,0.00958728]
[1762248182173,0.19247842,103910.0,103900.0,0.2020794]
[1762248182381,0.20136318,103910.0,103900.0,0.2020794]
[1762248182580,0.00888476,103910.0,103900.0,0.2020794]
[1762248182814,0.20135901,103910.0,103900.0,0.2020794]
[1762248183238,0.20135901,103910.0,103900.0,0.00982845]